bitfinex-derivatives/quotes_ETHF0:USTF0_20250926
["timestamp","ask_amount","ask_price","bid_price","bid_amount"]
[1758893685657,0.45857,3922.8,3922.7,3.2078]
[1758893685851,3.2332,3923.6,3922.7,4.0073]
[1758893686352,3.2332,3923.6,3922.8,0.5145]
[1758893686552,3.2078,3925.5,3924.2,0.45841]
[1758893686757,0.45832,3925.0,3924.6,3.4176]
[1758893686954,0.45834,3924.9,3924.8,0.5145]
[1758893687262,0.45836,3924.7,3924.2,3.2078]
[1758893687464,3.2078,3925.1,3924.3,0.5145]
[1758893687465,0.45839,3924.4,3924.3,0.5145]
[1758893687952,0.45838,3924.5,3924.3,0.286]
[1758893688558,0.4584,3924.3,3923.9,0.5145]
[1758893688765,0.45842,3924.2,3924.1,0.5145]
[1758893689061,3.2078,3924.7,3924.1,0.286]
[1758893689368,3.2078,3924.7,3924.6,0.2098]
[1758893689661,3.2078,3924.7,3924.6,1.0093]
[1758893689859,3.2078,3924.7,3924.6,0.5145]
[1758893690062,3.2078,3924.7,3924.6,0.285]
[1758893690263,3.2078,3924.7,3924.6,0.7995]
[1758893690562,0.45835,3924.8,3924.7,0.5145]
[1758893691062,3.2332,3924.9,3924.0,3.4176]
[1758893691254,3.2332,3924.9,3924.1,0.285]
[1758893691559,3.2332,3924.9,3924.2,0.285]
[1758893691560,0.45841,3924.3,3924.2,0.285]
[1758893691760,0.45841,3924.3,3924.2,0.5145]
[1758893691961,0.45841,3924.3,3924.2,0.7995]
[1758893692352,0.45842,3924.1,3924.0,3.2078]
[1758893692558,4.35375,3924.5,3923.6,3.7223]
[1758893692755,0.45844,3924.0,3923.7,0.285]
[1758893692953,3.2078,3924.5,3923.7,0.285]
[1758893693156,0.45845,3923.9,3923.7,0.285]
[1758893693356,0.45845,3923.9,3923.8,0.285]
[1758893693567,3.2078,3924.5,3923.9,0.5145]
[1758893693568,0.45843,3924.1,3923.9,0.5145]
[1758893693767,0.45847,3923.7,3923.6,3.4918]
[1758893694363,0.45847,3923.7,3923.6,3.2078]
[1758893694666,0.45852,3923.3,3923.2,3.2078]
[1758893694969,4.35398,3923.8,3922.4,3.2078]
[1758893694970,3.2078,3923.4,3922.4,3.2078]
[1758893695264,0.45859,3922.7,3922.5,0.284]
[1758893695466,0.45861,3922.5,3922.4,3.2078]
[1758893695660,0.45859,3922.7,3922.2,0.2098]
[1758893695864,0.45859,3922.7,3922.4,3.2078]
[1758893696058,0.45858,3922.8,3922.5,0.5145]
[1758893696364,0.45852,3923.3,3922.4,3.2078]
[1758893696567,3.2078,3923.7,3923.1,0.97303]
[1758893696766,0.45852,3923.3,3923.2,0.5145]
[1758893697066,0.45851,3923.4,3923.1,0.97303]
[1758893697270,0.45851,3923.4,3923.3,0.5145]
[1758893698059,0.45853,3923.2,3923.0,0.45855]
[1758893698368,0.45853,3923.2,3923.1,0.5145]
[1758893698775,0.45855,3923.0,3922.9,3.2078]
[1758893699072,0.45852,3923.3,3923.0,0.97304]
[1758893699371,0.45855,3923.1,3922.9,0.284]
[1758893699674,1.1463,3923.3,3922.5,0.5145]
[1758893699973,0.45858,3922.8,3922.7,0.5145]
[1758893700266,0.45858,3922.8,3922.6,0.7426]
[1758893700267,1.70556,3923.5,3922.6,0.7985]
[1758893700463,1.70556,3923.5,3922.4,3.2078]
[1758893700464,0.45861,3922.5,3922.4,3.2078]
[1758893700664,0.45869,3921.8,3921.6,0.45871]
[1758893700964,1.14645,3922.8,3921.6,0.45871]
[1758893700965,3.7671,3923.1,3921.7,0.5145]
[1758893701164,0.45867,3922.0,3921.7,0.5145]
[1758893701471,0.45858,3922.8,3922.5,0.4586]
[1758893701658,3.66635,3923.1,3922.7,0.97308]
[1758893701859,0.45859,3922.7,3922.5,0.74261]
[1758893702059,3.2078,3923.5,3922.7,0.45858]
[1758893702271,0.45857,3922.9,3922.5,0.4938]
[1758893702471,0.45857,3922.9,3922.7,0.5145]
[1758893702770,0.5593,3922.1,3922.0,3.2078]
[1758893703064,0.5593,3922.1,3920.8,1.14701]
[1758893703065,0.45881,3920.8,3920.6,0.5145]
[1758893703269,0.5593,3920.3,3920.2,3.44658]
[1758893703469,0.5593,3921.3,3920.2,2.9877]
[1758893703664,0.5558177,3921.2,3920.6,3.2078]
[1758893703868,0.0970477,3921.1,3920.8,0.4588]
[1758893704166,0.45874,3921.4,3920.6,3.4928]
[1758893704367,0.09708576,3921.3,3921.1,0.45877]
[1758893704567,0.45869,3921.8,3921.6,0.45871]
[1758893704770,0.45868,3921.9,3921.7,0.4587]
[1758893704972,0.7809,3922.0,3921.3,0.285]
[1758893705169,0.09709137,3921.9,3921.4,0.5579]
[1758893705464,0.09709137,3921.8,3921.4,0.5579]
[1758893705665,0.45867,3922.0,3921.6,0.45871]
[1758893705868,0.45867,3922.0,3921.3,0.285]
[1758893705869,0.64602007,3921.9,3921.5,3.2078]
[1758893706170,0.09711554,3921.8,3921.5,0.284]
[1758893706371,0.45861,3922.5,3922.2,0.45864]
[1758893706564,0.55578235,3922.4,3922.2,0.284]
[1758893706766,0.09716235,3922.3,3922.2,0.284]
[1758893706961,3.6664,3922.6,3922.3,0.45863]
[1758893707172,0.45865,3922.2,3921.9,1.01658]
[1758893707471,3.2078,3923.1,3922.9,0.45855]
[1758893707668,3.66629,3923.6,3923.0,0.284]
[1758893707869,0.45851,3923.4,3922.9,3.2078]
[1758893708165,3.7588,3923.1,3922.4,3.7487]
[1758893708470,0.09728796,3923.0,3922.9,0.99946]
[1758893708662,3.2078,3923.7,3922.9,0.8249]
[1758893708966,0.65228984,3923.6,3922.9,0.8249]
[1758893709172,0.65283248,3923.5,3922.9,0.8249]
[1758893709370,0.45852,3923.3,3923.0,0.284]
[1758893709571,0.55590113,3923.2,3922.9,0.5409]
[1758893709770,0.45855,3923.0,3922.4,3.66642]
[1758893709973,0.09737113,3922.9,3922.7,0.45858]
[1758893710175,0.09737113,3922.8,3922.7,0.45858]
[1758893710370,0.55595113,3922.8,3922.7,0.284]
[1758893710570,0.09737113,3922.8,3922.6,0.284]
[1758893710869,3.2078,3923.5,3922.7,3.2078]
[1758893711066,0.65371745,3923.4,3923.3,0.99942]
[1758893711267,0.09756471,3923.4,3923.3,1.28342]
[1758893711676,3.2078,3924.8,3923.3,1.28342]
[1758893711677,3.2078,3924.8,3924.5,0.45837]
[1758893711867,0.55641917,3924.7,3924.6,0.99926]
[1758893712073,3.2078,3925.3,3925.0,0.45831]
[1758893712377,3.2078,3925.3,3924.4,0.5409]
[1758893712378,1.00932,3925.0,3924.4,0.5409]
[1758893712677,0.551,3924.8,3924.5,0.284]
[1758893712978,0.45832,3925.0,3924.6,0.45836]
[1758893713169,0.55632052,3924.9,3924.5,0.284]
[1758893713371,0.55632052,3924.9,3924.2,3.2078]
[1758893713372,0.45839,3924.4,3924.2,3.2078]
[1758893713571,0.551,3924.4,3924.3,0.284]
[1758893713772,3.2078,3924.8,3924.3,0.7424]
[1758893714071,1.00938,3924.5,3924.3,0.284]
[1758893714275,4.59297,3925.2,3923.8,0.5409]
[1758893714579,0.4584,3924.3,3924.1,3.2078]
[1758893714875,0.551,3924.6,3923.9,0.284]
[1758893715074,3.2078,3925.0,3923.9,3.4918]
[1758893715275,0.551,3924.8,3923.9,4.0327]
[1758893715475,0.55568445,3924.7,3924.3,0.5409]
[1758893715679,0.45838,3924.5,3924.4,0.284]
[1758893715976,0.0254,3925.2,3924.5,0.5409]
[1758893716171,0.0254,3925.2,3925.0,0.45831]
[1758893716478,0.0254,3925.2,3925.1,0.8239]
[1758893716775,0.551,3926.7,3926.1,0.45818]
[1758893717080,0.55575169,3926.6,3926.3,0.5409]
[1758893717371,0.45812,3926.8,3926.5,0.5409]
[1758893717579,0.55537956,3926.7,3926.6,0.283]
[1758893717875,0.45809,3927.0,3926.6,0.283]
[1758893718174,0.214,3928.0,3926.8,3.2078]
[1758893718175,0.551,3927.7,3926.8,3.2078]
[1758893718384,0.551,3928.3,3927.8,0.5409]
[1758893718675,0.551,3928.8,3927.8,0.8239]
[1758893718870,0.45789,3928.7,3927.8,5.8239]
[1758893719074,0.551,3929.4,3928.8,0.45787]
[1758893719274,0.551,3930.0,3929.3,3.2078]
[1758893719475,0.55692615,3929.9,3929.3,3.2078]
[1758893719769,0.551,3929.5,3928.9,3.2078]
[1758893719966,0.45784,3929.1,3928.5,40.8]
[1758893720167,0.45784,3929.1,3928.6,0.284]
[1758893720368,0.0254,3929.1,3928.8,3.2078]
[1758893720872,0.48325,3929.1,3928.4,0.45791]
[1758893721180,0.48325,3929.1,3928.3,3.7487]
[1758893721181,0.45791,3928.6,3928.3,3.2078]
[1758893721371,0.45792,3928.5,3928.4,0.284]
[1758893721572,0.0254,3929.1,3927.7,0.45799]
[1758893721573,0.551,3928.7,3927.9,3.2078]
[1758893721779,0.45794,3928.3,3928.0,0.284]
[1758893721972,0.551,3928.7,3928.1,0.5409]
[1758893722282,0.0254,3929.1,3928.3,3.2078]
[1758893722478,0.0254,3929.1,3928.4,0.5409]
[1758893722680,0.551,3929.0,3928.5,0.284]
[1758893722978,0.45787,3928.9,3928.6,3.2078]
[1758893723284,0.4579,3928.6,3928.0,3.7487]
[1758893723580,0.45793,3928.4,3928.1,0.5409]
[1758893723769,0.45793,3928.4,3928.1,0.8249]
[1758893723978,0.45787,3928.8,3928.2,0.284]
[1758893724281,0.0254,3929.1,3928.4,3.66572]
[1758893724282,0.5764,3929.1,3928.4,3.66572]
[1758893724477,0.0254,3929.1,3928.4,3.2078]
[1758893724678,0.551,3929.0,3928.8,3.2078]
[1758893724886,0.0254,3929.1,3929.0,0.5409]
[1758893725279,0.45776,3929.8,3929.0,0.5409]
[1758893725478,0.45777,3929.7,3929.2,3.66562]
[1758893725672,0.765,3930.0,3929.3,0.284]
[1758893725886,0.45773,3930.0,3929.9,3.2078]
[1758893726074,0.45773,3930.0,3929.3,0.284]
[1758893726075,3.2078,3930.5,3929.4,3.2078]
[1758893726282,1.00877,3929.8,3929.5,0.284]
[1758893726581,1.00877,3929.8,3929.6,0.284]
[1758893726771,0.45778,3929.7,3929.2,0.45782]
[1758893727086,0.45771,3930.3,3929.5,0.5409]
[1758893727379,0.551,3931.1,3929.9,3.2078]
[1758893727681,0.551,3931.4,3930.7,0.45765]
[1758893727872,1.00858,3931.4,3930.8,0.284]
[1758893728078,3.2078,3931.6,3930.8,0.284]
[1758893728079,0.45762,3931.0,3930.8,0.284]
[1758893728277,0.0254,3931.4,3930.8,0.284]
[1758893728475,3.4218,3931.2,3930.6,0.284]
[1758893728677,1.00868,3930.5,3930.1,0.284]
[1758893728877,3.4218,3931.2,3930.1,0.74172]
[1758893729085,0.45771,3930.3,3930.1,0.284]
[1758893729282,0.551,3930.7,3930.1,0.8249]
[1758893729584,0.551,3930.7,3929.7,3.2078]
[1758893729887,0.45769,3930.5,3929.9,0.45775]
[1758893730084,0.45769,3930.5,3929.8,0.283]
[1758893730384,0.551,3930.6,3929.8,0.283]
[1758893730586,3.66545,3930.8,3930.5,0.45767]
[1758893730787,3.2078,3930.8,3930.6,1.28156]
[1758893730987,3.2078,3930.8,3930.6,0.45766]
[1758893731184,0.551,3930.7,3930.6,0.45766]
[1758893731381,1.00866,3930.7,3930.6,0.283]
[1758893731689,1.00866,3930.7,3929.6,0.5409]
[1758893731690,0.4577,3930.3,3929.7,3.2078]
[1758893731988,0.551,3930.3,3929.7,3.4908]
[1758893732182,3.4908,3930.8,3930.5,0.45768]
[1758893732382,3.2078,3930.8,3930.6,0.45766]
[1758893732588,3.2078,3930.8,3930.0,0.5409]
[1758893732589,3.7588,3930.8,3930.0,0.5409]
[1758893732791,0.551,3930.5,3930.1,0.283]
[1758893732985,0.551,3930.5,3930.3,0.45769]
[1758893733187,3.7588,3930.8,3930.7,0.45765]
[1758893733486,4.21645,3930.8,3930.6,0.45766]
[1758893733690,0.45767,3930.6,3930.5,0.45768]
[1758893733991,1.00868,3930.5,3930.3,0.45769]
[1758893734183,0.551,3930.4,3930.3,0.45769]
[1758893734377,3.4218,3931.2,3930.8,0.45764]
[1758893734579,0.45759,3931.3,3931.1,0.45761]
[1758893734786,3.2078,3931.6,3931.3,0.99848]
[1758893735292,3.2078,3931.6,3931.5,0.45756]
[1758893735597,0.551,3931.2,3930.8,0.283]
[1758893735887,1.00861,3931.1,3930.9,0.45763]
[1758893736090,0.551,3930.9,3930.0,3.2078]
[1758893736291,0.214,3931.5,3930.6,0.45767]
[1758893736586,0.45764,3930.9,3930.7,0.45765]
[1758893736883,1.00864,3930.9,3930.7,0.45765]
[1758893737090,0.551,3931.4,3931.1,0.4576]
[1758893737279,0.551,3931.4,3930.5,3.7487]
[1758893737480,0.45763,3930.9,3930.1,41.3396]
[1758893737680,0.45775,3929.9,3929.2,0.5396]
[1758893737984,3.2078,3930.2,3929.2,1.68418]
[1758893737985,0.45773,3930.1,3929.2,1.68418]
[1758893738286,3.7457,3930.2,3929.2,0.5396]
[1758893738483,0.5379,3929.8,3929.1,3.2078]
[1758893738691,0.5379,3929.4,3929.1,3.2078]
[1758893738993,0.0254,3930.0,3929.9,0.45775]
[1758893739186,0.5633,3930.0,3929.9,0.45775]
[1758893739385,0.5379,3929.9,3929.6,0.45778]
[1758893739580,0.5633,3930.0,3929.8,0.45775]
[1758893739780,0.0254,3930.0,3929.8,0.45775]
[1758893739980,0.5379,3929.9,3929.8,0.45776]
[1758893741287,0.63447418,3929.9,3929.8,0.45776]
[1758893741493,0.09657418,3929.9,3929.8,0.45776]
[1758893741691,0.0254,3930.0,3929.9,0.5396]
[1758893741889,0.0254,3930.0,3929.9,3.7474]
[1758893742087,0.45763,3930.9,3930.5,0.45767]
[1758893742288,0.45763,3930.9,3930.6,0.45766]
[1758893742289,0.65339309,3930.8,3930.6,0.45766]
[1758893742589,0.214,3931.5,3930.6,3.7474]
[1758893742792,3.2078,3931.6,3930.9,0.45762]
[1758893742793,0.65366168,3931.4,3930.9,0.45762]
[1758893742990,0.45761,3931.1,3930.6,0.282]
[1758893743185,0.65422119,3931.0,3930.9,0.45762]
[1758893743390,0.09674769,3931.0,3930.9,0.45762]
[1758893743590,0.09674769,3931.0,3930.9,0.99722]
[1758893744094,0.65508983,3931.0,3930.9,0.99722]
[1758893744290,0.65508983,3931.0,3930.8,0.45763]
[1758893744489,3.2078,3931.6,3930.6,0.282]
[1758893744490,3.2078,3931.6,3931.5,0.45756]
[1758893744695,3.86319419,3931.6,3931.5,0.45756]
[1758893745490,0.65539419,3931.6,3931.5,0.45756]
[1758893745792,0.45757,3931.5,3930.7,3.2078]
[1758893745996,0.45761,3931.1,3930.7,3.2078]
[1758893746196,0.65539419,3931.0,3930.8,0.45764]
[1758893746491,0.5379,3930.8,3930.7,3.2078]
[1758893746799,1.19329419,3930.8,3930.7,3.2078]
[1758893747596,0.45768,3930.5,3930.3,3.2078]
[1758893747795,0.45768,3930.5,3928.9,0.5396]
[1758893747796,1.14435,3930.0,3928.9,0.5396]
[1758893747996,0.2062,3929.5,3928.8,3.2078]
[1758893748198,0.2062,3929.5,3928.3,3.2078]
[1758893748199,0.4579,3928.6,3928.3,3.2078]
[1758893748392,0.5379,3928.4,3928.3,3.66573]
[1758893748600,0.65800858,3928.4,3928.3,4.20533]
[1758893748797,0.65800858,3928.4,3928.3,3.66573]
[1758893748798,1.19590858,3928.4,3928.3,3.66573]
[1758893749099,1.19590858,3928.4,3928.3,3.2078]
[1758893749597,0.45793,3928.3,3927.9,3.66577]
[1758893749794,1.09888736,3928.2,3928.0,0.45795]
[1758893749997,0.5379,3928.0,3927.9,3.2078]
[1758893750194,1.19590858,3928.0,3927.3,3.2078]
[1758893750497,0.65800858,3927.9,3927.3,3.7474]
[1758893750696,0.65800858,3927.8,3927.6,0.45801]
[1758893750890,0.65800858,3927.7,3927.6,0.5396]
[1758893751102,0.65800858,3927.7,3926.9,3.2078]
[1758893751103,0.7441,3927.6,3926.9,3.2078]
[1758893751294,0.5379,3927.4,3927.0,0.282]
[1758893751598,0.65800858,3927.3,3927.2,0.99766]
[1758893751800,0.65800858,3927.3,3927.2,0.5396]
[1758893751991,0.5379,3927.2,3927.0,0.282]
[1758893752201,0.65800858,3927.1,3927.0,0.282]
[1758893752498,0.65800858,3927.1,3927.0,0.8216]
[1758893753598,0.65800858,3927.1,3927.0,1.27968]
[1758893754192,0.4581,3926.9,3926.4,0.7616]
[1758893754494,0.5379,3926.7,3926.1,3.2078]
[1758893754805,0.6557039,3926.6,3926.5,3.7474]
[1758893755102,1.22e-06,3926.6,3926.5,4.0294]
[1758893755407,3.2078,3927.5,3927.4,0.5396]
[1758893755594,0.5379,3927.4,3926.9,3.2078]
[1758893755902,3.7457,3927.5,3927.3,0.45805]
[1758893756102,0.55816144,3927.4,3927.3,0.74005]
[1758893756494,0.55816144,3927.4,3926.9,3.2078]
[1758893756704,0.55816144,3927.3,3926.6,0.282]
[1758893756900,0.55816144,3927.2,3927.1,0.99767]
[1758893757199,1.09606144,3927.2,3926.4,0.5396]
[1758893757400,0.5379,3927.0,3926.9,0.45809]
[1758893757599,0.55816144,3927.0,3926.9,1.27969]
[1758893757806,0.5379,3928.0,3927.4,0.45803]
[1758893757998,0.55757675,3927.9,3927.3,3.4898]
[1758893758201,0.55757675,3927.8,3927.6,0.45801]
[1758893758405,0.55757675,3927.7,3927.6,0.74001]
[1758893758597,0.55757675,3927.7,3927.6,1.27961]
[1758893758796,0.55757675,3927.7,3927.6,0.99761]
[1758893758996,0.55757675,3927.7,3927.6,0.74001]
[1758893759196,0.55757675,3927.7,3927.6,1.27961]
[1758893759394,0.45792,3928.4,3927.6,0.8216]
[1758893759712,1.0954092,3928.3,3928.1,0.45795]
[1758893760003,0.5575092,3928.2,3928.1,0.99755]
[1758893760193,0.5575092,3928.2,3928.1,1.27955]
[1758893760397,2.25436005,3929.9,3929.2,0.45781]
[1758893760398,5.46216005,3929.9,3929.2,0.45781]
[1758893760601,0.5379,3929.7,3929.3,0.282]
[1758893760803,0.7441,3929.5,3928.6,3.2078]
[1758893761007,0.45783,3929.2,3928.7,0.73988]
[1758893761303,0.5379,3928.9,3928.8,0.282]
[1758893761511,0.5379,3928.9,3928.2,3.2078]
[1758893761807,0.5379,3928.2,3928.1,0.282]
[1758893762008,0.5379,3928.1,3927.7,3.2078]
[1758893762204,0.55760086,3928.0,3927.8,0.45799]
[1758893762399,3.414,3929.0,3927.7,3.4898]
[1758893762400,0.5379,3929.0,3928.8,0.45786]
[1758893762598,0.55785598,3928.9,3928.8,0.45786]
[1758893762799,1.09575598,3928.9,3928.3,3.7474]
[1758893763106,1.09575598,3928.8,3928.7,0.45788]
[1758893763405,0.5379,3928.7,3927.8,3.2078]
[1758893763705,0.5379,3927.9,3927.8,3.66578]
[1758893763904,0.73988,3928.8,3927.9,0.5396]
[1758893764099,0.55794176,3928.7,3928.5,0.9975]
[1758893764306,0.55794176,3928.6,3928.5,0.9975]
[1758893764501,0.55798196,3928.6,3928.5,0.9975]
[1758893764700,0.5379,3928.5,3928.3,3.2078]
[1758893764902,0.5379,3928.5,3927.8,0.5396]
[1758893764903,0.5379,3928.6,3927.8,4.0294]
[1758893765106,0.5379,3928.2,3927.8,4.48738]
[1758893765297,0.7545,3928.0,3927.4,3.2078]
[1758893765502,0.5409,3927.5,3927.4,3.2078]
[1758893765701,0.0254,3928.1,3927.5,0.5008]
[1758893766006,0.0254,3928.1,3927.9,0.45797]
[1758893766211,0.45798,3927.9,3927.6,0.45801]
[1758893766403,0.0254,3928.1,3927.4,3.2078]
[1758893766404,0.45802,3927.6,3927.4,3.2078]
[1758893766603,0.0254,3928.1,3927.4,3.4898]
[1758893766805,0.5409,3927.9,3927.4,3.4898]
[1758893767013,0.0254,3928.1,3928.0,0.5008]
[1758893767221,0.68064876,3928.1,3928.0,0.5008]
[1758893767507,0.0254,3928.1,3928.0,0.5008]
[1758893767709,0.0254,3928.1,3928.0,5.7024]
[1758893767913,3.721,3929.2,3928.1,0.5303]
[1758893768117,0.7244,3929.0,3928.3,3.2078]
[1758893768302,0.65543286,3928.9,3928.3,3.2078]
[1758893768509,3.2078,3929.2,3928.7,0.45788]
[1758893768510,0.09693378,3928.8,3928.7,0.45788]
[1758893768803,3.2078,3929.2,3928.7,0.8123]
[1758893769003,0.096944,3929.1,3928.8,0.5303]
[1758893769207,0.096944,3929.0,3928.8,0.98817]
[1758893769412,3.2078,3929.2,3929.1,0.45784]
[1758893769609,3.2078,3929.2,3928.8,0.5303]
[1758893769610,3.30474677,3929.2,3929.0,0.282]
[1758893769807,0.09694677,3929.1,3929.0,0.8123]
[1758893770015,0.2136,3930.0,3929.6,0.5303]
[1758893770016,3.2078,3929.7,3929.6,0.5303]
[1758893770308,3.81794158,3929.7,3928.8,3.7381]
[1758893770513,0.09694158,3929.6,3929.0,0.45784]
[1758893770811,0.09694158,3929.5,3929.4,0.5303]
[1758893771013,0.45778,3929.6,3929.4,0.281]
[1758893771311,0.55470909,3929.5,3928.8,3.2078]
[1758893771515,3.2078,3929.7,3929.0,0.7319]
[1758893771702,3.2332,3930.2,3929.3,4.35231]
[1758893771907,0.09692681,3930.1,3930.0,0.45773]
[1758893772107,0.0254,3930.2,3930.0,0.73873]
[1758893772304,0.0254,3930.2,3930.1,0.5303]
[1758893773010,3.2078,3931.2,3931.0,0.45761]
[1758893773208,0.97078,3931.3,3930.6,3.66546]
[1758893773408,0.2112,3931.5,3930.7,0.281]
[1758893773409,0.5132,3930.8,3930.7,0.281]
[1758893773707,0.45763,3930.9,3930.7,0.281]
[1758893773909,0.45765,3930.7,3930.6,3.2078]
[1758893774213,0.45765,3930.7,3930.1,0.45772]
[1758893774214,0.5132,3930.7,3930.1,3.2078]
[1758893774417,0.45769,3930.4,3930.2,0.281]
[1758893774613,0.97087,3930.6,3930.2,0.281]
[1758893774814,0.45772,3930.2,3929.7,40.8]
[1758893775009,0.45769,3930.5,3930.1,0.45772]
[1758893775214,0.5132,3930.8,3930.2,0.281]
[1758893775423,0.45763,3930.9,3930.5,0.98797]
[1758893775719,0.45764,3930.8,3930.5,0.8113]
[1758893776017,0.45767,3930.6,3930.4,3.4888]
[1758893776318,0.5132,3931.2,3930.8,0.45763]
[1758893776617,0.55461812,3931.1,3930.8,3.66543]
[1758893776817,0.5132,3931.1,3930.7,0.281]
[1758893777017,0.0106,3931.2,3930.9,0.45762]
[1758893777215,0.45761,3931.1,3930.8,3.2078]
[1758893777515,0.5546145,3931.0,3930.3,3.2078]
[1758893777816,0.5132,3931.1,3930.7,3.2078]
[1758893778007,0.0106,3931.2,3930.4,0.98799]
[1758893778213,0.2112,3931.0,3930.5,0.281]
[1758893778413,0.5132,3930.6,3930.5,0.73867]
[1758893778610,0.45766,3930.7,3930.5,0.73867]
[1758893778611,0.45764,3930.9,3930.5,0.8113]
[1758893778812,0.0106,3931.2,3930.6,0.5303]
[1758893779023,0.45765,3930.8,3930.6,0.28]
[1758893779225,0.5132,3930.7,3930.6,0.28]
[1758893779613,0.45773,3930.1,3929.8,3.2078]
[1758893779815,0.5132,3929.9,3929.8,3.2078]
[1758893780823,0.5132,3930.5,3929.8,3.2078]
[1758893781117,0.45768,3930.5,3930.3,0.4577]
[1758893781325,0.5132,3930.4,3930.3,0.28]
[1758893781512,0.2112,3931.0,3930.3,0.28]
[1758893781719,0.09684749,3930.9,3930.5,0.45767]
[1758893781912,0.5132,3930.4,3930.3,0.28]
[1758893782314,0.45775,3929.9,3929.7,0.45777]
[1758893782525,0.5132,3929.7,3929.6,3.2078]
[1758893782722,0.5132,3930.4,3929.9,0.45774]
[1758893783026,0.5132,3930.6,3930.2,0.4577]
[1758893783319,0.5132,3930.9,3930.5,0.45767]
[1758893783520,3.66544,3930.8,3930.6,0.45765]
[1758893783721,0.45767,3930.6,3930.4,0.45768]
[1758893783919,0.45765,3930.7,3930.5,0.45767]
[1758893784221,3.721,3930.8,3930.5,0.28]
[1758893784412,3.2078,3930.8,3930.5,0.28]
[1758893784616,0.5132,3929.9,3929.6,3.2078]
[1758893784818,0.45776,3929.8,3929.6,3.2078]
[1758893785119,0.7244,3930.5,3929.7,0.5303]
[1758893785319,0.09628518,3930.4,3930.3,4.1958]
[1758893785519,0.5238,3931.2,3930.3,4.0181]
[1758893785717,0.5132,3931.0,3930.4,0.45768]
[1758893785916,0.45774,3930.0,3929.8,3.7381]
[1758893786225,0.5132,3930.9,3930.2,0.98801]
[1758893786419,0.5132,3930.7,3930.5,0.45768]
[1758893786617,0.09641886,3930.6,3930.3,4.0181]
[1758893786826,0.09641886,3930.6,3930.5,0.5303]
[1758893787122,0.0106,3931.2,3930.7,0.45764]
[1758893787321,0.45763,3930.9,3930.8,0.45764]
[1758893787518,0.09644547,3930.9,3930.8,0.98794]
[1758893787726,0.0106,3931.2,3931.1,0.5303]
[1758893788017,0.45764,3930.9,3930.6,0.45766]
[1758893788215,3.2078,3931.3,3930.7,0.28]
[1758893788425,0.97087,3930.6,3930.4,0.45768]
[1758893788616,1.14402,3931.1,3930.3,0.28]
[1758893788617,0.45768,3930.5,3930.3,0.28]
[1758893788818,0.5132,3930.7,3930.3,0.28]
[1758893789022,1.14401,3931.2,3930.3,0.28]
[1758893789023,1.14402,3931.1,3930.3,0.28]
[1758893789322,4.5087201,3934.1,3930.9,3.7381]
[1758893789323,0.096526,3931.0,3930.9,3.7381]
[1758893789625,0.45754,3931.7,3931.5,0.98786]
[1758893789822,0.5132,3931.5,3931.0,0.45761]
[1758893790024,0.5132,3931.3,3930.5,3.4094]
[1758893790319,3.2078,3932.6,3932.0,0.45749]
[1758893790529,0.5132,3932.3,3932.1,0.45748]
[1758893790722,0.09658249,3932.2,3931.9,0.4575]
[1758893791022,0.09658249,3932.2,3931.5,3.2078]
[1758893791023,3.30438249,3932.2,3931.5,3.2078]
[1758893791321,0.5132,3931.6,3931.5,3.2078]
[1758893791514,0.5132,3931.3,3930.9,3.2078]
[1758893791714,0.5132,3931.0,3930.9,3.2078]
[1758893791919,0.60968699,3931.0,3930.9,3.2078]
[1758893792123,3.2078,3931.8,3930.9,3.2078]
[1758893792124,1.14384,3931.8,3930.9,3.2078]
[1758893792421,0.2112,3932.0,3930.8,0.28]
[1758893792422,0.65254203,3931.7,3931.5,0.45756]
[1758893792620,0.65254203,3931.7,3931.5,0.5303]
[1758893792621,0.09649178,3931.6,3931.5,0.5303]
[1758893792823,0.009,3931.7,3931.6,0.98785]
[1758893793127,0.009,3931.7,3931.6,1.26785]
[1758893793325,0.009,3931.7,3931.6,0.8103]
[1758893793824,0.009,3931.7,3931.6,11.89559773]
[1758893794124,0.009,3931.7,3931.5,0.45756]
[1758893794330,0.009,3931.7,3931.6,0.5303]
[1758893794631,0.009,3931.7,3931.3,3.66538]
[1758893794824,0.09647463,3931.6,3931.5,0.5303]
[1758893795228,0.45756,3931.5,3931.3,3.4878]
[1758893795526,0.60968907,3931.4,3931.3,3.2078]
[1758893795725,0.09648907,3931.4,3931.3,3.7381]
[1758893795926,0.009,3931.7,3931.3,3.7381]
[1758893795927,0.009,3931.7,3931.6,0.5303]
[1758893796128,0.45755,3931.6,3931.3,3.2078]
[1758893796322,0.5132,3931.1,3931.0,0.45762]
[1758893796522,0.5132,3931.1,3931.0,0.282]
[1758893796723,0.45754,3931.7,3931.4,0.45757]
[1758893796919,0.55634878,3931.6,3931.2,0.45759]
[1758893797122,0.66882,3931.0,3930.3,3.2078]
[1758893797327,0.45762,3931.0,3930.8,0.45764]
[1758893797523,0.1959,3931.0,3929.9,0.4978]
[1758893797724,0.45777,3929.8,3929.5,0.45779]
[1758893797925,0.45777,3929.8,3929.3,3.7056]
[1758893797926,0.5279,3930.4,3929.7,3.2078]
[1758893798130,1.0847222,3930.3,3930.0,0.45773]
[1758893798328,0.5568222,3930.2,3930.0,0.45773]
[1758893798522,0.55735551,3930.1,3929.9,0.45774]